[Event "4NCL 2022-2023"]
[Site "Daventry"]
[Date "2023.02.12"]
[Round "6.7"]
[White "Thorarinsson, Pall A."]
[Black "Steil-Antoni, Fiona"]
[Result "1-0"]
[ECO "A41"]
[WhiteElo "2169"]
[BlackElo "2195"]
[Annotator "TA"]
[PlyCount "97"]
[EventDate "2022.10.20"]
[EventType "team-tourn"]
[EventCountry "ENG"]
[SourceTitle "playchess.com"]
[Source "ChessBase"]
[SourceQuality "1"]
[TimeControl "40/6000+30:2400+30"]

{[%evp 9,97,67,87,8,16,20,24,-9,46,44,51,43,49,34,52,-19,74,82,138,73,90,89,73,0,74,46,261,179,189,169,164,6,20,31,240,253,295,291,287,283,336,335,345,287,291,291,283,245,410,259,404,218,243,235,239,207,210,140,133,131,128,119,80,67,146,127,245,191,628,230,795,756,7608,9795,29959,29962,29965,29966,29966,29966,29958,29958,29960,29958,6527,6527,29973,29974,29971,29972]} 1. d4 {[%emt 0:00:03]} d6 {[%emt 0:06:10]} 2. Nf3 {[%emt 0:01:01]} Bg4 {[%emt 0:00:11]} 3. e4 {[%emt 0:00:39]} Nd7 {[%emt 0:03:51]} 4. h3 {[%emt 0:03:41]} Bh5 {[%emt 0:02:24]} 5. Nc3 {[%emt 0:01:22]} e5 {[%emt 0:02:25]} 6. d5 {[%emt 0:01:04] A41: 1 d4 d6: Tartakower System and Modern Defence.} (6. Be3 $16) 6... Ngf6 $11 {[%emt 0:03:47] [#]} 7. g4 $146 {[%emt 0:07:54]} ({Predecessor:} 7. Bd3 Be7 8. g4 Bg6 9. Qe2 c6 10. dxc6 bxc6 11. h4 h5 12. g5 Nh7 13. Be3 {0-1 Smith,A (2483)-Danielsen,H (2498) Odense Andersen op 2012 (4)}) 7... Bg6 {[%emt 0:02:03]} 8. Qe2 {[%emt 0:00:55] White has an edge.} c6 {[%emt 0:07:52]} (8... h6 $11) 9. g5 $14 {[%emt 0:09:29]} Nh5 {[%emt 0:03:52]} 10. h4 $1 {[%emt 0:04:46]} Be7 {[%emt 0:03:28]} 11. Bh3 {[%emt 0:01:34]} O-O {[%emt 0:02:52]} 12. Be3 {[%emt 0:02:54]} (12. Nh2 $14) 12... f6 {[%emt 0:19:59]} (12... cxd5 $11 13. exd5 Kh8) 13. O-O-O $36 {[%emt 0:08:57][%mdl 2048] White is on the roll.} c5 {[%emt 0:05:27]} (13... cxd5 $142 14. Be6+ (14. Nxd5 Bxe4 15. Nxe7+ {[%mdl 64] Discovered Attack} Qxe7 $14) (14. exd5 f5 $11) (14. Rxd5 Nb6 $14) 14... Kh8) 14. gxf6 {[%emt 0:04:26] White is much more active. The black rooks are badly placed.} (14. Nd2 $142) 14... Ndxf6 {[%emt 0:03:51]} 15. Ng5 {[%emt 0:03:41]} Qa5 {[%emt 0:01:05][%cal Ob7b5]} 16. Rhg1 {[%emt 0:06:27]} (16. Rdg1 $16) 16... a6 {[%emt 0:02:18]} (16... b5 $11) 17. Ne6 {[%emt 0:23:33]} Rf7 $2 {[%emt 0:00:54]} (17... b5 $1 $14) 18. Bf5 {[%emt 0:04:40]} Bxf5 {[%emt 0:04:58]} 19. exf5 {[%emt 0:00:17]} b5 {[%emt 0:01:24][%cal Bb7b5,Bb5b4][%mdl 32] [#]} 20. Rg5 $2 {[%emt 0:03:09]} (20. Kb1 $1 $18) 20... b4 $11 {[%emt 0:01:36]} 21. Nb1 {[%emt 0:01:07]} Nf4 {[%emt 0:03:39]} (21... Qb5 $14 22. Qf3 e4) 22. Bxf4 $18 {[%emt 0:00:49]} exf4 {[%emt 0:00:22] [#]} 23. Rxg7+ $1 {[%emt 0:01:22][%mdl 512]} Rxg7 {[%emt 0:00:58]} 24. Nxg7 {[%emt 0:00:09]} Ra7 {[%emt 0:03:19]} 25. Rg1 {[%emt 0:01:22] White wants to mate with Qe6+.} Kh8 {[%emt 0:03:48]} 26. Nh5 {[%emt 0:09:08] aiming for Nxf6.} Nxh5 {[%emt 0:02:41]} 27. Qxh5 {[%emt 0:00:02] Threatening mate with Qe8+. Black is weak on the light squares} Qd8 {[%emt 0:01:29] Against Qe8+} 28. Re1 {[%emt 0:02:13] Nd2 is the strong threat.} (28. Qf7 Qf8 29. Qxf8+ Bxf8 $14) 28... Qg8 $2 {[%emt 0:07:01]} (28... Qf8 29. Nd2 Ra8) 29. Nd2 {[%emt 0:01:55]} Bf8 {[%emt 0:01:24]} (29... Qxd5 $142 30. Nf3 (30. Qe8+ Qg8 $16) 30... Bf8) 30. Qe8 {[%emt 0:01:54]} (30. f6 $142) 30... Re7 {[%emt 0:02:00]} 31. Rxe7 {[%emt 0:00:44]} Bxe7 {[%emt 0:00:02]} 32. Qxg8+ {[%emt 0:02:01]} ({Inferior is} 32. Qxe7 Qg1+ $11) 32... Kxg8 {[%emt 0:00:01][%mdl 4096] Endgame KB-KN} 33. h5 {[%emt 0:02:48] Black must now prevent Kd1.} Kg7 {[%emt 0:01:35]} 34. Ne4 {[%emt 0:00:52] Strongly threatening Kd2.} Kh6 {[%emt 0:01:25]} 35. Kd2 {[%emt 0:00:29] And now Ke2 would win.} ({Much weaker is} 35. f6 $6 Bf8 $11) 35... Kxh5 {[%emt 0:00:24] [#]} 36. f3 {[%emt 0:00:08]} Kh4 {[%emt 0:03:29]} ({Black should try} 36... Kh6 $14) 37. Ke2 {[%emt 0:00:28]} h6 {[%emt 0:00:56]} (37... Kh5 $16) 38. Kf2 {[%emt 0:00:41]} Kh3 $2 {[%emt 0:03:36]} (38... c4 39. c3 bxc3 40. bxc3 Bf8) 39. b3 $2 {[%emt 0:00:35]} (39. f6 Bd8 40. b3 (40. Nxd6 Bxf6 41. Nf5 h5 $16)) 39... Kh2 $2 {[%emt 0:00:18]} (39... Kh4 40. Ke2 Bf8) 40. f6 {[%emt 0:00:22]} Bf8 {[%emt 0:00:14]} 41. f7 {[%emt 0:40:06] Nf6 would kill now.} Kh3 {[%emt 0:00:00]} 42. Nf6 {[%emt 0:00:00]} Kh4 {[%emt 0:00:00]} 43. Nh7 {[%emt 0:00:00]} Bg7 {[%emt 0:00:00]} 44. f8=Q {[%emt 0:00:00]} Bxf8 {[%emt 0:00:00]} 45. Nxf8 {[%emt 0:00:00]} Kg5 {[%emt 0:00:00]} 46. Kg2 {[%emt 0:00:00]} Kf6 {[%emt 0:00:21]} 47. Nd7+ {[%emt 0:00:00]} Ke7 {[%emt 0:00:17]} 48. Nb6 {[%emt 0:00:00]} Kf6 {[%emt 0:00:38]} 49. Nc4 {[%emt 0:00:00] Weighted Error Value: White=0.49/Black=0.76} 1-0

[Event "4NCL 2022-2023"]
[Site "Daventry"]
[Date "2023.02.12"]
[Round "6.8"]
[White "Boswell, Jacob Connor"]
[Black "Mirza, Diana"]
[Result "1-0"]
[ECO "A30"]
[WhiteElo "2109"]
[BlackElo "1904"]
[Annotator "TA"]
[PlyCount "63"]
[EventDate "2022.10.20"]
[EventType "team-tourn"]
[EventCountry "ENG"]
[SourceTitle "playchess.com"]
[Source "ChessBase"]
[SourceQuality "1"]
[TimeControl "40/6000+30:2400+30"]

{[%evp 9,63,29,158,159,137,147,190,155,164,83,72,81,166,104,108,91,101,94,87,93,1023,124,142,140,154,156,154,164,166,138,1204,1154,1110,368,363,373,623,537,515,534,568,561,527,511,464,425,441,441,442,439,457,436,446,449,499,444]} 1. c4 {[%emt 0:01:44]} c5 {[%emt 0:00:09]} 2. Nf3 {[%emt 0:00:06]} Nc6 {[%emt 0:00:18]} 3. e3 {[%emt 0:00:15]} g6 {[%emt 0:07:08]} 4. d4 {[%emt 0:02:39]} cxd4 {[%emt 0:03:34]} 5. exd4 {[%emt 0:01:42]} d5 {[%emt 0:00:31]} (5... Bg7 $11 {keeps the balance.}) 6. cxd5 $1 $16 {[%emt 0:07:55] A30: Symmetrical English: Double Fianchetto and Hedgehog.} Qxd5 {[%emt 0:00:11]} 7. Nc3 {[%emt 0:01:02]} Qa5 {[%emt 0:10:40]} 8. d5 $1 {[%emt 0:09:50] White is clearly better.} Nb8 {[%emt 0:01:48] [#]} 9. Be2 $146 {[%emt 0:20:57]} ({Better is} 9. Bc4 $18) ({Predecessor:} 9. Qd4 Nf6 10. d6 Nc6 11. Bb5 Bd7 12. Bxc6 Bxc6 13. O-O O-O-O 14. Bf4 Bg7 15. Ne5 Rxd6 {1-0 Viskelis,D (2200)-Santos Flores,A (2182) Titled Tuesday intern op 23rd Nov blitz 2021 (9)}) 9... Bg7 {[%emt 0:03:18]} 10. O-O {[%emt 0:04:46]} Nh6 {[%emt 0:27:36]} (10... Nf6 $16 {was called for.}) 11. d6 {[%emt 0:29:13]} ({White should play} 11. Bxh6 $18 Bxh6 12. d6) 11... Nf5 {[%emt 0:04:59]} 12. Nb5 {[%emt 0:02:40]} Nxd6 {[%emt 0:07:18]} 13. Nxd6+ {[%emt 0:00:48]} exd6 {[%emt 0:00:07]} 14. Qxd6 {[%emt 0:01:00]} Qb6 $2 {[%emt 0:08:09][%mdl 8192]} (14... Nc6 $16) 15. Qa3 $2 {[%emt 0:02:59]} (15. Bb5+ $1 $18 Nc6 16. a4) 15... Nc6 {[%emt 0:02:10]} 16. Bc4 $1 $40 {[%emt 0:06:20][%mdl 128] Re1+ is the strong threat. White is out for blood.} Be6 {[%emt 0:10:29]} 17. Bxe6 {[%emt 0:01:40]} fxe6 {[%emt 0:00:06] [#]} 18. Ng5 $1 {[%emt 0:09:50]} Nd4 {[%emt 0:08:46] [#]} 19. Be3 $1 {[%emt 0:01:03] Rae1 would be deadly.} e5 $2 {[%emt 0:07:33][%mdl 8192]} (19... h6 $16) 20. Bxd4 $18 {[%emt 0:02:19][%mdl 64] Remove Defender} Qxd4 {[%emt 0:01:43]} 21. Qb3 $2 {[%emt 0:00:30]} (21. Rad1 Qc4 22. Qh3) 21... O-O-O {[%emt 0:01:01]} 22. Ne6 {[%emt 0:00:44][%csl LRd4,LRd8,LRg7]} Qd7 {[%emt 0:00:17]} (22... Qd5 23. Nxg7 Qxb3 24. axb3 Kd7) 23. Rac1+ {[%emt 0:00:51] White is clearly winning.} Kb8 {[%emt 0:00:04]} 24. Rfd1 {[%emt 0:00:36][%cal Oe6d8] Nxd8! would kill now.} Qe7 {[%emt 0:00:23]} 25. Rxd8+ {[%emt 0:00:14]} Rxd8 {[%emt 0:00:07]} 26. Nxd8 {[%emt 0:00:08]} Qxd8 {[%emt 0:00:05]} 27. Qd1 {[%emt 0:01:15]} Qxd1+ {[%emt 0:00:48]} 28. Rxd1 {[%emt 0:00:01] KR-KB} Kc7 {[%emt 0:00:08]} 29. f3 {[%emt 0:00:35]} Bf8 {[%emt 0:01:19]} 30. Kf2 {[%emt 0:01:00]} Bc5+ {[%emt 0:00:16]} 31. Ke2 {[%emt 0:00:21]} Bd4 {[%emt 0:00:05] [#]} 32. Rxd4 $1 {[%emt 0:00:36][%mdl 512] Weighted Error Value: White=0.61/Black=0.43} 1-0

[Event "4NCL 2022-2023"]
[Site "Daventry"]
[Date "2023.02.12"]
[Round "6.9"]
[White "Ansell, Simon T"]
[Black "Parligras, Mircea-Emilian"]
[Result "0-1"]
[ECO "B53"]
[WhiteElo "2345"]
[BlackElo "2570"]
[Annotator "TA"]
[PlyCount "152"]
[EventDate "2022.10.20"]
[EventType "team-tourn"]
[EventCountry "ENG"]
[SourceTitle "playchess.com"]
[Source "ChessBase"]
[SourceQuality "1"]
[TimeControl "40/6000+30:2400+30"]

{[%evp 9,152,14,10,0,-7,0,13,5,0,0,0,0,0,0,0,-29,8,-43,3,0,0,10,12,-35,-39,-102,-100,-147,-147,-156,-154,-175,-174,-174,-168,-170,-168,-191,-189,-189,-164,-170,-160,-158,-138,-138,-138,-195,-121,-114,-114,-120,-112,-114,-112,-156,-131,-147,-131,-181,-140,-140,-140,-140,-140,-150,-124,-272,-214,-195,-131,-131,-131,-131,-120,-94,-94,-326,-296,-294,-280,-281,-281,-438,-413,-473,-131,-91,0,-315,-256,-1717,-1381,-1160,-5110,-5293,-5258,-5173,-4860,-1709,-1711,-5097,-5089,-5281,-5081,-5257,-5081,-4134,-2325,-1647,-1566,-1239,-1159,-772,-225,-191,-336,-684,-83,-83,-83,-83,-83,-90,-91,-29973,-29975,-29975,-29976,-29976,-29977,-29977,-29978,-29980,-29981,-29983,-29982,-29982,-29982,-29982,-29983,-29982,-29983,-29983,-29983]} 1. e4 {[%emt 0:01:12]} c5 {[%emt 0:00:15]} 2. Nf3 {[%emt 0:00:21]} d6 {[%emt 0:00:07]} 3. d4 {[%emt 0:01:25]} cxd4 {[%emt 0:00:08]} 4. Qxd4 {[%emt 0:00:04]} Nf6 {[%emt 0:00:36]} 5. Be2 {[%emt 0:00:33]} g6 {[%emt 0:00:35]} 6. h3 {[%emt 0:01:33] B53: Sicilian: 2...d6: Lines with Qxd4.} Bg7 {[%emt 0:00:17]} 7. O-O {[%emt 0:00:26]} O-O {[%emt 0:00:10]} 8. Rd1 {[%emt 0:01:23] The position is equal.} Be6 {[%emt 0:04:17]} 9. Qe3 {[%emt 0:01:57]} Qb6 {[%emt 0:00:54]} 10. Qxb6 {[%emt 0:17:08]} axb6 {[%emt 0:00:08]} 11. Nc3 {[%emt 0:00:01]} Rc8 {[%emt 0:02:44][%cal Oc8c3] [#]} 12. Bd3 $146 {[%emt 0:07:02]} ({Predecessor:} 12. Nd4 Bc4 13. Kf1 Bxe2+ 14. Kxe2 Rxc3 15. bxc3 Nxe4 16. Bd2 Nc6 17. f3 Nxd2 18. Rxd2 {0-1 Thybo,J (2516)-Manish,A (2249) Nova Gorica op-A 26th 2022 (7)}) 12... Na6 {[%emt 0:08:04]} 13. a3 {[%emt 0:03:30]} (13. Be3 $11) 13... Nc5 {[%emt 0:02:04]} (13... Nd7 $1 $15) 14. Be3 {[%emt 0:01:02]} Bd7 {[%emt 0:18:59]} 15. Nd4 {[%emt 0:11:34]} Bc6 {[%emt 0:00:30][%cal Rc6e4]} 16. Nxc6 {[%emt 0:00:51]} (16. f3 $11) 16... bxc6 $15 {[%emt 0:00:35]} 17. a4 {[%emt 0:03:33]} (17. Rab1 $15) 17... Nfd7 $17 {[%emt 0:01:14][%cal Bf6d7,Bd7e5,Be5c4][%mdl 32]} 18. Ra3 {[%emt 0:21:30] [#]} ({Better is} 18. f4) 18... b5 $1 {[%emt 0:01:58][%mdl 512] ...b4 is the strong threat.} 19. b4 {[%emt 0:03:15]} (19. Bxc5 Nxc5) 19... Nxa4 {[%emt 0:02:48]} 20. Nxa4 {[%emt 0:00:05]} Rxa4 {[%emt 0:00:32]} 21. Rb3 {[%emt 0:01:46]} Ne5 {[%emt 0:01:09]} 22. f4 {[%emt 0:04:24]} Nc4 {[%emt 0:01:09]} 23. Bf2 {[%emt 0:00:12]} Rca8 {[%emt 0:00:38]} 24. Kf1 {[%emt 0:01:36]} Ra1 {[%emt 0:02:39]} 25. Rxa1 {[%emt 0:00:16]} Rxa1+ {[%emt 0:00:06]} 26. Ke2 {[%emt 0:00:03]} Kf8 {[%emt 0:02:21] Black is more active.} 27. e5 {[%emt 0:00:43]} Ke8 {[%emt 0:07:35]} 28. h4 {[%emt 0:03:52]} (28. Bd4 $17 Ra2 29. Be4) 28... h5 {[%emt 0:07:09]} (28... dxe5 $19 29. Bxc4 bxc4) 29. exd6 {[%emt 0:01:50]} Nxd6 {[%emt 0:03:03]} 30. Bc5 {[%emt 0:01:21]} Bf6 {[%emt 0:15:27]} 31. g3 {[%emt 0:01:15]} Kd7 {[%emt 0:08:28]} 32. Kf3 {[%emt 0:03:42]} Nc4 {[%emt 0:01:47]} 33. Ke2 {[%emt 0:00:14] Repels Nd2} e6 {[%emt 0:05:10]} 34. Be4 {[%emt 0:04:04]} (34. Bxc4 $17 {was necessary.} bxc4 35. Re3) 34... Ra3 {[%emt 0:02:16]} 35. Rxa3 {[%emt 0:02:18]} Nxa3 {[%emt 0:00:06][%mdl 4096] Endgame KBB-KBN} 36. Kd3 {[%emt 0:01:54] Prevents Bc3.} Nc4 {[%emt 0:00:52]} 37. Bf2 {[%emt 0:00:58]} Be7 {[%emt 0:01:33]} 38. c3 {[%emt 0:01:16]} (38. Be1 $17 {was worth a try.}) 38... f5 $1 $19 {[%emt 0:03:44]} 39. Bg2 {[%emt 0:00:08]} Bd8 {[%emt 0:01:10]} (39... Bd6 $19 {aiming for ...e5.} 40. Be1 e5 41. fxe5 Nxe5+ 42. Kc2 Ng4) 40. Ke2 {[%emt 0:04:34]} Bc7 {[%emt 0:02:31]} 41. Bd4 {[%emt 0:06:54]} e5 {[%emt 0:00:00]} 42. fxe5 {[%emt 0:01:12]} Nxe5 {[%emt 0:00:00]} ({Don't play} 42... Bxe5 $6 43. Bxe5 Nxe5 44. Ke3 $11) 43. Bf2 $2 {[%emt 0:00:58]} (43. Be3 $17 {only move.}) 43... Ng4 {[%emt 0:00:00]} 44. Be1 {[%emt 0:00:41]} Be5 {[%emt 0:00:00]} 45. Kd3 {[%emt 0:04:59]} Nf6 {[%emt 0:00:00]} 46. Bf3 {[%emt 0:00:44]} (46. c4 $142 bxc4+ 47. Kxc4) 46... Kd6 {[%emt 0:00:00]} 47. Bg2 {[%emt 0:00:54]} Nd5 $2 {[%emt 0:01:56]} (47... Ne4 $19 {and Black stays clearly on top.} 48. Bxe4 fxe4+ 49. Kxe4 Ke6) 48. Bf3 $17 {[%emt 0:00:14]} Nf6 $2 {[%emt 0:09:22]} (48... Kd7 $17) 49. Bg2 $1 $19 {[%emt 0:00:57]} Ne4 {[%emt 0:01:56]} 50. Bxe4 $2 {[%emt 0:00:34]} (50. c4) 50... fxe4+ {[%emt 0:00:03]} 51. Kxe4 {[%emt 0:00:14] KB-KB} Ke6 {[%emt 0:00:02]} 52. Ke3 {[%emt 0:00:14]} Kd5 {[%emt 0:00:51] And now ...Kc4 would win.} 53. Kd3 {[%emt 0:00:20]} Bd6 {[%emt 0:01:10]} 54. Bf2 {[%emt 0:00:40]} Bc7 {[%emt 0:04:26]} 55. Be1 {[%emt 0:03:47]} c5 {[%emt 0:05:14]} 56. bxc5 {[%emt 0:01:12]} Kxc5 {[%emt 0:00:01]} 57. Bf2+ {[%emt 0:00:27]} Kd5 {[%emt 0:00:04]} 58. Be1 {[%emt 0:01:20]} Bb8 {[%emt 0:01:07]} 59. Bf2 {[%emt 0:00:18]} Bd6 {[%emt 0:00:04]} 60. Be1 {[%emt 0:00:28]} Ke5 {[%emt 0:00:21] White must now prevent ...Kd5.} 61. Ke3 {[%emt 0:05:55]} Bc5+ $2 {[%emt 0:00:13]} (61... Bf8 62. Kd3 Bd6) 62. Kf3 {[%emt 0:00:51]} Kd5 $1 {[%emt 0:00:21]} 63. g4 $2 {[%emt 0:11:20] [#]} (63. Kf4 Be7 64. g4 hxg4 65. Kxg4) 63... hxg4+ $2 {[%emt 0:02:26]} (63... Bd6 $1 $19 {is more deadly.} 64. gxh5 gxh5) 64. Kxg4 $17 {[%emt 0:00:09]} Be7 {[%emt 0:00:05] Threatens to win with ...Bf6.} 65. h5 {[%emt 0:03:47]} gxh5+ {[%emt 0:00:04]} 66. Kxh5 {[%emt 0:00:06]} Bf6 {[%emt 0:00:15] ( -> ...Kc4)} 67. Kg6 $2 {[%emt 0:00:05][%mdl 8192] [#]} (67. Kg4 $17) 67... Bh8 $1 {[%emt 0:00:05] Black mates.} 68. Bh4 {[%emt 0:02:00]} Bxc3 {[%emt 0:00:08]} 69. Be7 {[%emt 0:00:02]} Bd4 {[%emt 0:00:39]} 70. Kf5 {[%emt 0:00:15]} Bc5 {[%emt 0:28:49]} 71. Bg5 {[%emt 0:01:18]} b4 {[%emt 0:00:00][%cal Bb5b4,Bb4b3][%mdl 32]} 72. Bc1 {[%emt 0:02:21]} b3 {[%emt 0:00:00]} 73. Bb2 {[%emt 0:00:21]} Bd4 {[%emt 0:00:00]} 74. Ba3 {[%emt 0:00:15]} Bc3 {[%emt 0:00:00]} 75. Kf4 {[%emt 0:00:19]} Kd4 {[%emt 0:00:00]} 76. Kf3 {[%emt 0:00:17]} Kd3 {[%emt 0:00:00] Weighted Error Value: White=0.39/Black=0.27 (precise)} 0-1

[Event "4NCL 2022-2023"]
[Site "Daventry"]
[Date "2023.02.12"]
[Round "6.10"]
[White "Lupulescu, Constantin"]
[Black "Gormally, Daniel W"]
[Result "1/2-1/2"]
[ECO "B56"]
[WhiteElo "2592"]
[BlackElo "2448"]
[Annotator "TA"]
[PlyCount "105"]
[EventDate "2022.10.20"]
[EventType "team-tourn"]
[EventCountry "ENG"]
[SourceTitle "playchess.com"]
[Source "ChessBase"]
[SourceQuality "1"]
[TimeControl "40/6000+30:2400+30"]

{[%evp 12,105,25,17,22,17,28,31,38,24,52,41,68,64,68,56,64,60,72,45,45,45,52,53,60,49,70,50,81,52,44,47,59,16,23,0,35,16,19,19,53,9,6,6,30,45,42,35,61,61,67,83,68,57,43,0,79,0,69,48,95,100,100,0,93,70,85,85,85,0,85,0,91,87,95,77,62,0,98,0,89,47,45,17,17,17,17,17,29,12,12,14,16,0,12,0]} 1. e4 {[%emt 1:41:00]} c5 {[%emt 0:01:14]} 2. Nf3 {[%emt 0:00:00]} d6 {[%emt 0:00:04]} 3. d4 {[%emt 0:00:00]} cxd4 {[%emt 0:00:19]} 4. Nxd4 {[%emt 0:00:00]} Nf6 {[%emt 0:00:38]} 5. Nc3 {[%emt 0:00:00]} Nc6 {[%emt 0:01:41]} 6. Bb5 {[%emt 0:00:00]} Bd7 {[%emt 0:00:47]} 7. Be3 {[%emt 0:00:00] 7.Bg5 is setting a new trend.} a6 {[%emt 0:03:57] B56: Classical Sicilian: Unusual Lines.} 8. Be2 {[%emt 0:00:00]} Nxd4 {[%emt 0:03:45]} 9. Qxd4 {[%emt 0:00:00]} e5 {[%emt 0:01:11] White is slightly better.} 10. Qd2 {[%emt 0:00:00] [#]} h6 $146 {[%emt 0:02:34]} ({Predecessor:} 10... Bc6 11. Bf3 Be7 12. O-O O-O 13. Rad1 b5 14. Bg5 b4 15. Bxf6 bxc3 16. Bxe7 cxd2 17. Bxd8 Raxd8 18. Rxd2 {½-½ Nguyen,C-Bui,D VIE-ch U17 Hue 2003 (1)}) 11. O-O-O {[%emt 0:00:00]} Rc8 {[%emt 0:06:41]} 12. f3 {[%emt 0:00:00]} Qa5 {[%emt 0:01:37]} 13. Kb1 {[%emt 0:00:00]} Be7 {[%emt 0:01:19]} 14. g4 {[%emt 0:00:00]} Be6 {[%emt 0:03:25][%cal Oc8c3]} 15. a3 {[%emt 0:00:00]} (15. h4 {is interesting.} Rxc3 16. Qxc3 Qxa2+ 17. Kc1) 15... Rxc3 {[%emt 0:13:45][%mdl 64] [#] Deflection} 16. Qxc3 {[%emt 0:00:00]} Qxc3 {[%emt 0:00:04]} 17. bxc3 {[%emt 0:00:00]} d5 {[%emt 0:00:05]} 18. exd5 $1 {[%emt 0:00:00]} Nxd5 {[%emt 0:00:06]} 19. Rd3 {[%emt 0:00:00]} Bg5 {[%emt 0:00:26]} 20. Bxg5 {[%emt 0:00:00]} hxg5 {[%emt 0:00:06]} 21. Bf1 {[%emt 0:00:00]} b5 {[%emt 0:10:06]} 22. h3 {[%emt 0:00:00][%cal Oa3a4]} Ke7 {[%emt 0:01:08]} 23. Rh2 {[%emt 0:00:00]} Rc8 {[%emt 0:01:36]} 24. Kb2 {[%emt 0:00:00]} Nb6 {[%emt 0:00:47]} 25. Re3 {[%emt 0:00:00]} Kf6 {[%emt 0:09:23]} 26. h4 {[%emt 0:00:48]} (26. Rd2 $5 {[%cal Rd2d6]}) 26... gxh4 {[%emt 0:02:47]} 27. Rxh4 {[%emt 0:00:07]} Na4+ {[%emt 0:06:16]} 28. Kc1 {[%emt 0:00:05]} Nxc3 {[%emt 0:00:28]} 29. Rh5 {[%emt 0:02:35]} g5 {[%emt 0:03:49]} 30. Bd3 {[%emt 0:01:19]} a5 {[%emt 0:06:43]} 31. Rh6+ {[%emt 0:00:59]} Kg7 {[%emt 0:00:07]} 32. Rh7+ {[%emt 0:00:07]} Kf6 {[%emt 0:00:03]} 33. Rh6+ {[%emt 0:00:09]} Kg7 {[%emt 0:00:05]} 34. Rh7+ {[%emt 0:00:08]} (34. Rh1 $5 {[%cal Re3e5]}) 34... Kf6 {[%emt 0:00:04]} 35. Re1 {[%emt 0:00:41]} Rc5 {[%emt 0:09:38]} (35... b4 $14) 36. Rh6+ $16 {[%emt 0:01:04]} Kg7 {[%emt 0:00:15]} 37. Rh7+ {[%emt 0:00:21]} Kf6 {[%emt 0:00:06]} 38. Kd2 {[%emt 0:01:10]} b4 {[%emt 0:03:56]} 39. Rh6+ {[%emt 0:00:50]} Kg7 {[%emt 0:00:20]} 40. Rh7+ {[%emt 0:00:26]} Kf6 {[%emt 0:00:59]} 41. Rh6+ {[%emt 0:42:39]} Kg7 {[%emt 0:40:05] [#]} 42. axb4 $1 {[%emt 0:00:09]} axb4 {[%emt 0:00:05]} 43. Rh7+ {[%emt 0:02:13]} Kf6 {[%emt 0:02:41]} 44. Rh6+ {[%emt 0:00:19]} Kg7 $1 {[%emt 0:01:03]} 45. Rh7+ {[%emt 0:00:24]} Kf6 $1 {[%emt 0:00:06]} 46. Ra1 {[%emt 0:00:00] White is more active.} Rd5 $1 {[%emt 0:00:00]} 47. Ra7 {[%emt 0:00:00] Rh6+ is the strong threat.} (47. Ke3 $5 {[%cal Ra1a7]}) 47... e4 {[%emt 0:00:00]} 48. fxe4 {[%emt 0:00:00]} Nxe4+ {[%emt 0:00:00]} 49. Ke3 {[%emt 0:00:00]} Nd6 {[%emt 0:00:00]} 50. Rh6+ {[%emt 0:00:00]} Ke5 {[%emt 0:00:00] The position is equal.} 51. Rh5 {[%emt 0:00:00]} Kf6 {[%emt 0:00:00]} 52. Rh6+ {[%emt 0:00:00]} Ke5 {[%emt 0:00:00]} 53. Rh5 {[%emt 0:02:53] Weighted Error Value: White=0.24 (precise) /Black=0.07 (flawless)} 1/2-1/2

[Event "4NCL 2022-2023"]
[Site "Daventry"]
[Date "2023.02.12"]
[Round "6.11"]
[White "Ledger, Andrew J"]
[Black "Cyborowski, Lukasz"]
[Result "1/2-1/2"]
[ECO "D37"]
[WhiteElo "2313"]
[BlackElo "2498"]
[Annotator "TA"]
[PlyCount "42"]
[EventDate "2022.10.20"]
[EventType "team-tourn"]
[EventCountry "ENG"]
[SourceTitle "playchess.com"]
[Source "ChessBase"]
[SourceQuality "1"]
[TimeControl "40/6000+30:2400+30"]

{[%evp 13,42,4,12,4,18,7,7,6,11,12,17,17,14,12,14,14,14,14,16,14,14,2,14,14,15,0,0,0,0,8,7]} 1. d4 {[%emt 0:00:04]} d5 {[%emt 0:00:29]} 2. c4 {[%emt 0:00:13]} e6 {[%emt 0:00:19]} 3. Nf3 {[%emt 0:00:20]} Nf6 {[%emt 0:01:05]} 4. Nc3 {[%emt 0:00:19]} Be7 {[%emt 0:04:34]} 5. Bf4 {[%emt 0:00:43]} O-O {[%emt 0:00:26]} 6. e3 {[%emt 0:00:07]} Nbd7 {[%emt 0:04:32]} 7. c5 {[%emt 0:01:11]} Nh5 {[%emt 0:06:57] The position is equal.} 8. Bd3 {[%emt 0:01:17] D37: Queen's Gambit Declined: 5 Bf4.} c6 {[%emt 0:07:05]} 9. O-O {[%emt 0:00:36]} Nxf4 {[%emt 0:00:07]} (9... b6 {feels hotter.} 10. Ne5 Nxe5 11. Bxh7+ Kxh7 12. Qxh5+ Kg8) 10. exf4 {[%emt 0:00:04]} b6 {[%emt 0:00:22]} 11. b4 {[%emt 0:00:17]} Qc7 {[%emt 0:02:53]} 12. g3 {[%emt 0:00:17]} a5 {[%emt 0:00:38]} 13. a3 {[%emt 0:00:47]} Ba6 {[%emt 0:00:12]} 14. Bxa6 {[%emt 0:03:10]} Rxa6 {[%emt 0:00:24]} 15. Qe2 {[%emt 0:00:48]} Raa8 {[%emt 0:00:46]} 16. Na4 {[%emt 0:05:29][%cal Bc3a4,Ba4b2,Bb2d3][%mdl 32]} Bf6 {[%emt 0:06:33]} 17. Nb2 {[%emt 0:10:04] [#]} axb4 $146 {[%emt 0:11:29]} ({Predecessor:} 17... Ra7 18. Rfb1 axb4 19. axb4 Rfa8 20. Qd1 h6 21. h4 Qb7 22. Nd3 Ra3 23. Kg2 R8a7 24. Rxa3 Rxa3 {½-½ Urkedal,F (2558)-Mitusov,S (2332) Kvisla 2022 (9)}) 18. axb4 {[%emt 0:00:07]} Ra7 {[%emt 0:00:08]} 19. Nd3 {[%emt 0:06:33]} Rfa8 {[%emt 0:01:38]} 20. Qb2 {[%emt 0:12:39]} Qb7 {[%emt 0:08:47]} 21. Qc3 {[%emt 0:02:01]} h6 {[%emt 0:03:43] Not much happened in this game.   Weighted Error Value: White=0.03 (flawless) /Black=0.02 (flawless)} 1/2-1/2